Cogmind - Beta 13 @@@ ROGUE MODE // 2024.04.15 @ 15:43:16 Player: Lunace Result: Destroyed by G-47 Trooper with Particle Gun Performance ------------- Evolutions (0) 0 Regions Visited (1) 200 Robots Destroyed (9) 45 Value Destroyed (286) 286 Prototype IDs (3) 60 Alien Tech Used (0) 0 Bonus (0) 0 TOTAL SCORE: 591 Bonus ------- None Cogmind --------- Core Integrity 0/250 Matter 258/300 Energy 250/250 System Corruption 0% Temperature Cool (42) Movement Rolling (235) Ox9 Location -10/Materials Parts ------- > --- POWER (1) -------- Ion Engine > --- PROPULSION (2) --- Compact Wheel > --- UTILITY (2) ------ Cargo Storage Unit > --- WEAPON (2) ------- Hammer Hammer > --- INVENTORY (30) --- Ion Engine Ion Engine Compact Wheel Improved Heat Sink Improved Heat Sink High-capacity Matter Pod (100) Structural Scanner Power Shielding Hacking Suite EM Pulse Gun EM Pulse Gun Medium Laser Light Assault Rifle Grenade Launcher Datajack Peak State ------------ > --- POWER ------------ Ion Engine > --- PROPULSION ------- Compact Wheel Compact Wheel > --- UTILITY ---------- Cargo Storage Unit > --- WEAPON ----------- Medium Laser Light Assault Rifle > --- INVENTORY -------- Ion Engine Ion Engine Compact Wheel Improved Heat Sink Improved Heat Sink High-capacity Matter Pod Structural Scanner Power Shielding Hacking Suite EM Pulse Gun EM Pulse Gun Medium Laser Light Assault Rifle Grenade Launcher Hammer Hammer [Rating: 9] Favorites ----------- Power Ion Engine Engine Ion Engine Propulsion Compact Wheel Wheel Compact Wheel Utility Cargo Storage Unit Device Tractor Beam Storage Cargo Storage Unit Processor Signal Interpreter Weapon Light Assault Rifle Energy Gun Medium Laser Ballistic Gun Light Assault Rifle Impact Weapon Hammer Build | -11 -10 ------- Run | Yrd Mat Slots Evolved . | . . Power . | . . Propulsion . | . . Utility . | . . Weapon . | . . Parts Attached 19 | 6 13 Power 3 | 1 2 Engine 3 | 1 2 Core . | . . Reactor . | . . Propulsion 3 | 2 1 Treads . | . . Leg . | . . Wheel 3 | 2 1 Hover . | . . Flight . | . . Utility 4 | 1 3 Device 1 | . 1 Storage 2 | 1 1 Processor 1 | . 1 Hackware . | . . Protection . | . . Artifact . | . . Weapon 9 | 2 7 Energy Gun 3 | . 3 Energy Cannon . | . . Ballistic Gun 4 | 2 2 Ballistic Cannon . | . . Launcher . | . . Special Weapon . | . . Impact Weapon 2 | . 2 Slashing Weapon . | . . Piercing Weapon . | . . Special Melee Weapon . | . . Unidentified Prototypes . | . . Parts Lost 4 | . 4 Power . | . . Propulsion 2 | . 2 Utility . | . . Weapon 2 | . 2 Highest Loss Streak 3 | . 3 To Critical Strikes . | . . Average Slot Usage (%) 87 | . 87 Engine 14 | . 14 Wheel 27 | . 27 Device 2 | . 2 Storage 14 | . 14 Energy Gun 11 | . 11 Ballistic Gun 14 | . 14 Naked Turns . | . . Heaviest Build 148 | 12 148 Greatest Support 32 | 32 32 Greatest Overweight (x) 4 | . 4 Average Overweight (x) 2 | . 2 Largest Inventory Capacity 30 | 8 30 Average Capacity 22 | 7 24 Most Carried 17 | 3 17 Average Carried 9 | 1 10 Final Capacity 30 | 8 30 Final Carried 15 | 3 15 Class Distribution -------------------- 64% | Hauler-Mutant 35% | Mutant Dominant Class ---------------- Hauler-Mutant | -10/Materials Resources | -11 -10 ----------- Run | Yrd Mat Matter Collected 485 | 272 213 Remotely 52 | . 52 Salvage Created 411 | 96 315 Parts 18 | 3 15 Haulers Intercepted . | . . Recyclers Shooed . | . . Parts Field Recycled . | . . Retrieved Matter . | . . Parts Self-Destructed . | . . Prevented . | . . Kills | -11 -10 ------- Run | Yrd Mat Combat Hostiles Destroyed 7 | . 7 Guns 7 | . 7 Classes Destroyed 3 | 1 2 Recycler 1 | 1 . Operator 1 | . 1 Grunt 7 | . 7 Best Kill Streak 2 | 1 2 Combat Bots Only 2 | . 2 Max Kills in Single Turn 1 | 1 1 Gunslinging . | . . Exploded . | . . Melee . | . . Uniques/NPCs Destroyed . | . . Combat | -11 -10 -------- Run | Yrd Mat Hostile Shots Fired 74 | . 74 Missed 15 | . 15 Damage Taken 783 | . 783 Core 256 | . 256 Absorbed by Shields . | . . Core Remaining (%) 100 | 100 . Volleys Fired 51 | 6 45 Largest 2 | 2 2 Hottest 70 | 40 70 Shots Fired 102 | 12 90 Gun 102 | 12 90 Cannon . | . . Launcher . | . . Special . | . . Kinetic 57 | 12 45 Thermal 45 | . 45 Explosive . | . . Electromagnetic . | . . Robot Hit Streak 11 | 5 11 Robot Miss Streak 3 | 2 3 Penetration Max . | . . Secondary Targets 1 | . 1 Max Gunslinging Chain 1 | . 1 Shots Hit Robots 74 | 7 67 Core Hits 24 | 2 22 Critical Kills . | . . Critical Parts Destroyed 1 | 1 . Critical Strikes 4 | 1 3 Burn 3 | . 3 Destroy 1 | 1 . Melee Attacks 5 | . 5 Impact 5 | . 5 Slashing . | . . Piercing . | . . Sneak Attacks . | . . Combat Hostiles . | . . Follow-up Attacks . | . . Damage Inflicted 818 | 58 760 Guns 737 | 58 679 Cannons . | . . Explosions . | . . Melee 65 | . 65 Ramming 16 | . 16 Kinetic 334 | 58 276 Thermal 403 | . 403 Explosive . | . . Electromagnetic . | . . Impact 65 | . 65 Slashing . | . . Piercing . | . . Highest Corruption . | . . Average Corruption . | . . Corruption Purged . | . . Corruption Blocked . | . . Overload Shots . | . . Overflow Damage . | . . Projectiles . | . . Explosions . | . . Melee . | . . Knockbacks . | . . Impact . | . . Kinetic . | . . Secondary . | . . Self-Inflicted Damage 8 | . 8 Shots . | . . Rammed 1 | . 1 Targets Rammed 1 | . 1 Kicked . | . . Crushed . | . . Highest Temperature 330 | . 330 Average Temperature 99 | . 99 Received Heat Transfer 444 | . 444 Effects 2 | . 2 Energy Bleed 1 | . 1 Interference 1 | . 1 Siege Activations . | . . Robots Corrupted . | . . Combat Hostiles . | . . Parts Fried . | . . Impact Corruptions . | . . Robots Melted . | . . Combat Hostiles . | . . Parts Melted . | . . Heat Transferred 1406 | . 1406 Parts Sabotaged . | . . Parts Stolen . | . . Parts Stripped . | . . Power Chain Reactions . | . . Alert | -11 -10 ------- Run | Yrd Mat Peak Influence 220 | 5 220 Initial 3 | . 3 Average 50 | 1 57 Maximum Alert Level 1 | . 1 Low Security (%) 97 | 100 97 Level 1 2 | . 2 Level 2 . | . . Level 3 . | . . Level 4 . | . . Level 5 . | . . High Security . | . . Max Security . | . . Squads Dispatched 2 | . 2 Investigation . | . . Extermination . | . . Reinforcement 2 | . 2 Assault . | . . Garrison . | . . Intercept . | . . Searches Triggered . | . . Construction Impeded . | . . Haulers Reinforced . | . . Active Scanning Responses . | . . Cargo Convoy Interrupts . | . . Stealth | -11 -10 --------- Run | Yrd Mat Distress Signals . | . . Communications Jammed . | . . Distress Signals . | . . Times Spotted 15 | . 15 Peak Tracking Total 4 | . 4 Tactical Retreats 1 | . 1 Traps | -11 -10 ------- Run | Yrd Mat Traps Triggered 1 | . 1 Indirectly . | . . Trap Hack Attempts . | . . Triggered . | . . Disarmed . | . . Reprogrammed . | . . Reused . | . . Traps Extracted . | . . Installed . | . . Triggered . | . . Machines | -11 -10 ---------- Run | Yrd Mat Machines Disabled . | . . Max in Single Turn . | . . Machines Repaired . | . . Machines Dismantled . | . . Machines Sabotaged . | . . Overloaded Fab Kills . | . . Hacking | -11 -10 --------- Run | Yrd Mat Machines Accessed 6 | . 6 Terminals 5 | . 5 Fabricators . | . . Repair Stations 1 | . 1 Recycling Units . | . . Scanalyzers . | . . Garrison Access . | . . Total Hacks 14 | . 14 Successful 5 | . 5 Failed 9 | . 9 Catastrophic 3 | . 3 Database Lockouts . | . . Manual 12 | . 12 Terminals 12 | . 12 Fabricators . | . . Repair Stations 2 | . 2 Recycling Units . | . . Scanalyzers . | . . Garrison Access . | . . Terminal Hacks 3 | . 3 Prototype ID Bank 1 | . 1 Terminal Index 1 | . 1 Recycling Unit Index 1 | . 1 Fabricator Hacks . | . . Repair Station Hacks 1 | . 1 Scan Component 1 | . 1 Recycling Unit Hacks . | . . Scanalyzer . | . . Garrison Access Hacks . | . . Unauthorized Hacks 1 | . 1 Terminals 1 | . 1 Disrupt 1 | . 1 Fabricators . | . . Repair Stations . | . . Recycling Units . | . . Scanalyzers . | . . Garrison Access . | . . Data Cores Recovered . | . . Used . | . . Hacking Detections 6 | . 6 Full Trace Events . | . . Feedback Events . | . . Feedback Blocked . | . . Robot Schematics Acquired . | . . Robots Built . | . . Authchips . | . . Time . | . . Total Robot Build Rating . | . . Part Schematics Acquired . | . . Parts Built . | . . Authchips . | . . Time . | . . Total Part Build Rating . | . . Parts Repaired . | . . Time . | . . Parts Recycled . | . . Recycled Matter . | . . Retrieved Matter . | . . Retrieved Components . | . . Parts Scanalyzed . | . . Part Schematics Acquired . | . . Parts Damaged . | . . Bothacking | -11 -10 ------------ Run | Yrd Mat Used RIF Installer . | . . Robots Hacked . | . . Non-combat . | . . Combat . | . . Robot Hacks Applied . | . . Relay Couplers Released . | . . Fabnet Peak Effective % . | . . Robots Rewired . | . . Allies Hacked . | . . Hacks Repelled . | . . Allies | -11 -10 -------- Run | Yrd Mat Total Allies . | . . Largest Group . | . . Highest-Rated Group . | . . Highest-Rated Ally . | . . Total Orders . | . . Ally Attacks . | . . Total Damage . | . . Kills . | . . Allies Corrupted . | . . Allies Melted . | . . Intel | -11 -10 ------- Run | Yrd Mat Robot Analysis Total . | . . Derelict Logs Recovered . | . . Drone Launches . | . . Drone Recoveries . | . . Exploration | -11 -10 ------------- Run | Yrd Mat Turns Passed 699 | 87 612 Spaces Moved 330 | 57 273 Core 4 | 4 . Treads . | . . Legs . | . . Wheels 326 | 53 273 Hover . | . . Flight . | . . Fastest Speed 50 | 50 100 Average Speed 130 | 96 137 Slowest Speed 160 | 100 160 Overloaded Moves . | . . Propulsion Burnouts . | . . Robots Hopped . | . . Cave-ins Triggered . | . . Exploration Rate (%) 27 | 6 48 Regions Visited 1 Branch Regions . Pre-discovered Areas . | . . Known Exits Taken . | . . Unknown Exits Taken 1 | 1 . Scrap Searched . | . . Spaces Dug 1 | . 1 Terrain Destroyed 1 | . 1 Melee 1 | . 1 Projectile . | . . AOE . | . . Terrain Rammed . | . . Walls Destroyed . | . . Machines Disabled . | . . Actions | -11 -10 --------- Run | Yrd Mat Total 494 | 76 418 Wait 62 | 5 57 Move 329 | 56 273 Hop . | . . Pick Up 22 | 3 19 Fast Attach 11 | 6 5 Attach 4 | . 4 Detach . | . . Swap 4 | . 4 Drop 5 | . 5 Fire 51 | 6 45 Melee 5 | . 5 Ram 1 | . 1 Kick . | . . Crush . | . . Escape Stasis . | . . Rewire . | . . Trap . | . . Miscellaneous . | . . Route ------- -11/Scrapyard -10/Materials (discovered 1 exit: [*Mat]) History --------- Turn | Location | Event 13 | -11/Scrapyard | Discovered new exit (range 15) 88 | -11/Scrapyard | Entered Materials 539 | -10/Materials | Build established: Hauler-Mutant 595 | -10/Materials | Discovered new exit (range 14) 657 | -10/Materials | Core integrity fell below 50% 679 | -10/Materials | Core integrity fell below 20% 700 | -10/Materials | Destroyed by G-47 Trooper with Particle Gun Last Messages --------------- 00634_ K-01 Serf collects debris. 00641_ K-01 Serf cleans the Electrolysis Chamber. 00646_ G-34 Mercenary suffers critical hit (Burn). 00647_ K-01 Serf collects debris. 00654_ K-01 Serf cleans the Electrolysis Chamber. 00658_ Lgt. Assault Rifle destroyed. 00660_ Med. Laser destroyed. 00661_ K-01 Serf cleans the Electrolysis Chamber. 00662_ G-34 Mercenary suffers critical hit (Burn). 00668_ G-34 Mercenary overheating. 00671_ G-34 Mercenary destroyed. 00684_ Overheating: Energy bleed (-35). 00688_ Overheating: System interference. 00688_ Hammer temporarily disabled. 00688_ Com. Wheel destroyed. Map ----- +----------------------------------------------------+ | ????????????????????????????????? | | ????????????????????????????????? | | ????????????????????????????????? | | ????????????????????????????????? | | ????????????????????????????????? | | ????????????????????????????????? | | ????????????????????????????????? | | ????????????????????????????????? | | ????????????????????????????????? | | ????????????????????????????????? | | ????????????????????????????????? | | ????????????????????????????????? | | ????????????????????????????????? | | ?????????????????????????????? | | ????????????????????????????????? | | ?????? ??????????? ???????????? | | ?????? #?????????# ???????????? | | ?????? #?????????# ########???? | | ?????# +?????????# # #???? | | ?????# #?????????# # #???? | | ?????# #?????????# # #???? | | ####?# #?????????# # #???? | | #?# #?????????# + ????? | | #?# #?????????# # ?????? | | #?# #???????### ###;g#####?? | | #?# ######### # @ !#?? | | ??# "" # #?? | | +##### ## T +% """ #?? | | # ## # """ #?? | | ! #^ ## # """ #?? | | + ######## #?? | | !! # #??????########?? | | !! ###+#### #???????????????? | | # # #???????????????? | | ! # # #???????????????? | | # # ############????? | | ###### # #????? | | ?????# + < #????? | | ?????# # #????? | | ?????# ################????? | | ?????# #???????????????????? | | ?????# #???????????????????? | | ?????# #???????????????????? | | ?????########???????????????????? | | ????????????????????????????????? | | | | | | | | | | | +----------------------------------------------------+ Best States ------------- Heat Dissipation 25 Energy Generation 10 Energy Capacity 250 Matter Stores 300 Matter Capacity 300 Sight Range 16 Terrain Scan Density 10 Evasion (%) 40 Item Schematics ----------------- None Robot Schematics ------------------ None Fabricated ------------ Nothing Alien Tech Used ----------------- None Achievements -------------- None Challenges ------------ None Game ------ Seed PrecisionDerelictStorage Manual? 0 Play Time 00:11:31 Cumulative 74.3 hours Start 2024.04.15 @ 15:36:44 End 2024.04.15 @ 15:43:16 Sessions 1 Manual Loads 0 Difficulty Rogue Special Mode None Game No. 86 Rogue 81 Adventurer 5 Explorer 0 Win Type - Total 3 Types 2/0/0/1/0/0/0/0/0 Lore% 36 Gallery% 55 Achievement% 43 Wizard Run 0 Options --------- Layout 1 ASCII 0 Keyboard 0 Movement Mouse Keybinds 0 Fullscreen 1 Font 24/Terminus Map View 50x35 Zoom Use 0% Tactical HUD 1 Map Filters NONE Filters NONE Steam 1 RUN: 37fba4db-1f0a-4a57-b7bc-2bcc8aa30337